fUSD/lending_fUSD_20250618
["ID","MTS","AMOUNT","RATE_DAILY","PERIOD"]
[366372150,1750218673444,-1094.86,0.00016931,2]
[366372151,1750218673454,-490.0,0.00016931,2]
[366372152,1750218673463,-490.0,0.00016931,2]
[366372153,1750218673473,-151.0,0.00016931,2]
[366372154,1750218673482,-151.0,0.00016931,2]
[366372155,1750218673492,-151.0,0.00016931,2]
[366372156,1750218673502,-490.0,0.00016931,2]
[366372157,1750218673512,-490.0,0.00016931,2]
[366372158,1750218673521,-490.0,0.00016931,2]
[366372159,1750218673532,-796.03,0.00016931,2]
[366372160,1750218673543,-581.61,0.00016931,2]
[366372161,1750218673554,-490.0,0.00016931,2]
[366372162,1750218673564,-579.13,0.00016931,2]
[366372163,1750218673574,-490.0,0.00016931,2]
[366372164,1750218673583,-602.72,0.00016931,2]
[366372165,1750218673593,-1381.16,0.00016931,2]
[366372166,1750218673602,-490.0,0.00016931,2]
[366372167,1750218673611,-1124.14,0.00016931,2]
[366372168,1750218673621,-490.0,0.00016931,2]
[366372169,1750218673630,-490.0,0.00016931,2]
[366372170,1750218673640,-632.32,0.00016931,2]
[366372171,1750218673650,-490.0,0.00016931,2]
[366372172,1750218673660,-490.0,0.00016931,2]
[366372173,1750218673669,-490.0,0.00016931,2]
[366372174,1750218673679,-1186.81,0.00016931,2]
[366372175,1750218673689,-176.71538139,0.00016931,2]
[366372176,1750218673700,-490.0,0.00016931,2]
[366372177,1750218673710,-490.0,0.00016931,2]
[366372178,1750218673719,-1405.72,0.00016931,2]
[366372179,1750218673728,-895.51,0.00016931,2]
[366372180,1750218673738,-738.54,0.00016931,2]
[366372181,1750218673747,-490.0,0.00016931,2]
[366372182,1750218673756,-490.0,0.00016931,2]
[366372183,1750218673765,-690.5,0.00016931,2]
[366372184,1750218673775,-894.21,0.00016931,2]
[366372185,1750218673785,-490.0,0.00016931,2]
[366372186,1750218673794,-490.0,0.00016931,2]
[366372187,1750218673803,-490.0,0.00016931,2]
[366372188,1750218673813,-1560.48,0.00016931,2]
[366372189,1750218673822,-1096.0,0.00016931,2]
[366372190,1750218673832,-1157.88,0.00016931,2]
[366372191,1750218673842,-490.0,0.00016931,2]
[366372192,1750218673851,-490.0,0.00016931,2]
[366372193,1750218673861,-490.0,0.00016931,2]
[366372194,1750218673870,-490.0,0.00016931,2]
[366372195,1750218673880,-490.0,0.00016931,2]
[366372196,1750218673890,-1142.31,0.00016931,2]
[366372197,1750218673900,-490.0,0.00016931,2]
[366372198,1750218673910,-490.0,0.00016931,2]
[366372199,1750218673918,-1339.37,0.00016931,2]
[366372200,1750218673928,-945.47,0.00016931,2]
[366372201,1750218673937,-604.63,0.00016931,2]
[366372202,1750218673948,-490.0,0.00016931,2]
[366372203,1750218673958,-1118.57,0.00016931,2]
[366372204,1750218673968,-1252.78,0.00016931,2]
[366372205,1750218673977,-490.0,0.00016931,2]
[366372206,1750218673987,-490.0,0.00016931,2]
[366372207,1750218673996,-613.41,0.00016931,2]
[366372208,1750218674006,-1639.5,0.00016931,2]
[366372209,1750218674016,-559.89,0.00016931,2]
[366372210,1750218674025,-193.45569526,0.00016931,2]
[366372211,1750218674034,-490.0,0.00016931,2]
[366372212,1750218674044,-490.0,0.00016931,2]
[366372213,1750218674053,-490.0,0.00016931,2]
[366372214,1750218674062,-1319.76,0.00016931,2]
[366372215,1750218674072,-699.41,0.00016931,2]
[366372216,1750218674083,-490.0,0.00016931,2]
[366372217,1750218674093,-665.26,0.00016931,2]
[366372218,1750218674102,-491.52,0.00016931,2]
[366372219,1750218674112,-762.38,0.00016931,2]
[366372220,1750218674122,-919.64,0.00016931,2]
[366372221,1750218674132,-490.0,0.00016931,2]
[366372222,1750218674146,-490.0,0.00016931,2]
[366372223,1750218674155,-705.0,0.00016931,2]
[366372224,1750218674165,-564.55,0.00016931,2]
[366372225,1750218674175,-633.1,0.00016931,2]
[366372226,1750218674186,-490.0,0.00016931,2]
[366372227,1750218674195,-754.48,0.00016931,2]
[366372228,1750218674205,-1354.54,0.00016931,2]
[366372229,1750218674215,-490.0,0.00016931,2]
[366372230,1750218674225,-490.0,0.00016931,2]
[366372231,1750218674236,-1240.4,0.00016931,2]
[366372232,1750218674246,-845.84,0.00016931,2]
[366372233,1750218674256,-635.79,0.00016931,2]
[366372234,1750218674266,-651.15,0.00016931,2]
[366372235,1750218674275,-490.0,0.00016931,2]
[366372236,1750218674285,-885.34,0.00016931,2]
[366372237,1750218674295,-1028.48,0.00016931,2]
[366372238,1750218674305,-539.71,0.00016931,2]
[366372239,1750218674316,-918.61,0.00016931,2]
[366372240,1750218674326,-1311.32,0.00016931,2]
[366372241,1750218674335,-490.0,0.00016931,2]
[366372242,1750218674345,-1790.55,0.00016931,2]
[366372243,1750218674355,-257.567472,0.00016931,2]
[366372244,1750218674365,-1406.34,0.00016931,2]
[366372245,1750218674374,-509.13,0.00016931,2]
[366372246,1750218674384,-151.0,0.00016931,2]
[366372247,1750218674394,-151.0,0.00016931,2]
[366372248,1750218674403,-490.0,0.00016931,2]
[366372249,1750218674413,-490.0,0.00016931,2]
[366372250,1750218674422,-585.53,0.00016931,2]
[366372251,1750218674431,-155.699864,0.00016931,2]
[366372252,1750218674441,-1298.75,0.00016931,2]
[366372253,1750218674450,-776.09,0.00016931,2]
[366372254,1750218674459,-490.0,0.00016931,2]
[366372255,1750218674469,-490.0,0.00016931,2]
[366372256,1750218674479,-790.94,0.00016931,2]
[366372257,1750218674488,-490.0,0.00016931,2]
[366372258,1750218674498,-1760.56,0.00016931,2]
[366372259,1750218674508,-1402.38,0.00016931,2]
[366372260,1750218674517,-1216.93,0.00016931,2]
[366372261,1750218674527,-1081.64,0.00016931,2]
[366372262,1750218674536,-781.28,0.00016931,2]
[366372263,1750218674546,-670.06,0.00016931,2]
[366372264,1750218674555,-769.08,0.00016931,2]
[366372265,1750218674566,-1095.39,0.00016931,2]
[366372266,1750218674576,-490.0,0.00016931,2]
[366372267,1750218674586,-787.9,0.00016931,2]
[366372268,1750218674595,-490.0,0.00016931,2]
[366372269,1750218674605,-572.29,0.00016931,2]
[366372270,1750218674614,-490.0,0.00016931,2]
[366372271,1750218674624,-1178.45,0.00016931,2]
[366372272,1750218674633,-587.51,0.00016931,2]
[366372273,1750218674643,-1176.28,0.00016931,2]
[366372274,1750218674651,-869.98,0.00016931,2]
[366372275,1750218674661,-1200.44,0.00016931,2]
[366372276,1750218674670,-490.0,0.00016931,2]
[366372277,1750218674680,-151.0,0.00016931,2]
[366372278,1750218674690,-964.97,0.00016931,2]
[366372279,1750218674699,-151.0,0.00016931,2]
[366372280,1750218674708,-490.0,0.00016931,2]
[366372281,1750218674718,-799.87,0.00016931,2]
[366372282,1750218674728,-727.1,0.00016931,2]
[366372283,1750218674737,-2005.58,0.00016931,2]
[366372284,1750218674746,-490.0,0.00016931,2]
[366372285,1750218674756,-490.0,0.00016931,2]
[366372286,1750218674766,-856.83,0.00016931,2]
[366372287,1750218674775,-1669.55,0.00016931,2]
[366372288,1750218674785,-708.79,0.00016931,2]
[366372289,1750218674796,-587.88,0.00016931,2]
[366372290,1750218674805,-1279.8,0.00016931,2]
[366372291,1750218674815,-571.8,0.00016931,2]
[366372292,1750218674824,-858.87,0.00016931,2]
[366372293,1750218674833,-490.0,0.00016931,2]
[366372294,1750218674843,-768.48,0.00016931,2]
[366372295,1750218674852,-490.0,0.00016931,2]
[366372296,1750218674861,-490.0,0.00016931,2]
[366372297,1750218674871,-1068.88,0.00016931,2]
[366372298,1750218674880,-490.0,0.00016931,2]
[366372299,1750218674890,-490.0,0.00016931,2]
[366372300,1750218674899,-702.79,0.00016931,2]
[366372301,1750218674909,-490.0,0.00016931,2]
[366372302,1750218674919,-1492.65,0.00016931,2]
[366372303,1750218674929,-1055.4,0.00016931,2]
[366372304,1750218674940,-2889.55,0.00016931,2]
[366372305,1750218674951,-490.0,0.00016931,2]
[366372306,1750218674961,-561.35,0.00016931,2]
[366372307,1750218674971,-969.55,0.00016931,2]
[366372308,1750218674980,-862.95,0.00016931,2]
[366372309,1750218674989,-490.0,0.00016931,2]
[366372310,1750218674998,-490.0,0.00016931,2]
[366372311,1750218675008,-490.0,0.00016931,2]
[366372312,1750218675018,-490.0,0.00016931,2]
[366372313,1750218675027,-490.0,0.00016931,2]
[366372314,1750218675037,-692.8,0.00016931,2]
[366372315,1750218675047,-490.0,0.00016931,2]
[366372316,1750218675057,-897.72,0.00016931,2]
[366372317,1750218675066,-490.0,0.00016931,2]
[366372318,1750218675077,-810.96,0.00016931,2]
[366372319,1750218675086,-548.83,0.00016931,2]
[366372320,1750218675096,-490.0,0.00016931,2]
[366372321,1750218675105,-490.0,0.00016931,2]
[366372322,1750218675115,-490.0,0.00016931,2]
[366372323,1750218675125,-490.0,0.00016931,2]
[366372324,1750218675135,-659.55,0.00016931,2]
[366372325,1750218675148,-490.0,0.00016931,2]
[366372326,1750218675157,-490.0,0.00016931,2]
[366372327,1750218675167,-1895.51,0.00016931,2]
[366372328,1750218675177,-662.51,0.00016931,2]
[366372329,1750218675188,-554.61,0.00016931,2]
[366372330,1750218675197,-490.0,0.00016931,2]
[366372331,1750218675207,-490.0,0.00016931,2]
[366372332,1750218675217,-490.0,0.00016931,2]
[366372333,1750218675228,-1259.37,0.00016931,2]
[366372334,1750218675238,-1398.21,0.00016931,2]
[366372335,1750218675248,-490.0,0.00016931,2]
[366372336,1750218675257,-1063.32,0.00016931,2]
[366372337,1750218675266,-490.0,0.00016931,2]
[366372338,1750218675275,-490.0,0.00016931,2]
[366372339,1750218675283,-490.0,0.00016931,2]
[366372340,1750218675291,-2102.4,0.00016931,2]
[366372341,1750218675300,-490.0,0.00016931,2]
[366372342,1750218675310,-490.0,0.00016931,2]
[366372343,1750218675318,-490.0,0.00016931,2]
[366372344,1750218675328,-490.0,0.00016931,2]
[366372345,1750218675338,-799.11,0.00016931,2]
[366372346,1750218675351,-490.0,0.00016931,2]
[366372347,1750218675366,-2007.91,0.00016931,2]
[366372348,1750218675375,-490.0,0.00016931,2]
[366372349,1750218675385,-1466.49,0.00016931,2]
[366372350,1750218675395,-517.32,0.00016931,2]
[366372351,1750218675405,-490.0,0.00016931,2]
[366372352,1750218675414,-497.14,0.00016931,2]
[366372353,1750218675424,-490.0,0.00016931,2]
[366372354,1750218675434,-490.0,0.00016931,2]
[366372355,1750218675444,-593.55,0.00016931,2]
[366372356,1750218675454,-709.3,0.00016931,2]
[366372357,1750218675463,-740.16,0.00016931,2]
[366372358,1750218675474,-490.0,0.00016931,2]
[366372359,1750218675484,-558.54,0.00016931,2]
[366372360,1750218675493,-1839.23,0.00016931,2]
[366372361,1750218675503,-490.0,0.00016931,2]
[366372362,1750218675512,-1344.72,0.00016931,2]
[366372363,1750218675522,-2307.99,0.00016931,2]
[366372364,1750218675532,-490.0,0.00016931,2]
[366372365,1750218675541,-490.0,0.00016931,2]
[366372366,1750218675551,-1121.77,0.00016931,2]
[366372367,1750218675560,-658.79,0.00016931,2]
[366372368,1750218675569,-490.0,0.00016931,2]
[366372369,1750218675579,-1326.66,0.00016931,2]
[366372370,1750218675588,-1636.75,0.00016931,2]
[366372371,1750218675598,-978.01,0.00016931,2]
[366372372,1750218675607,-490.0,0.00016931,2]
[366372373,1750218675617,-783.02,0.00016931,2]
[366372374,1750218675627,-1770.42,0.00016931,2]
[366372375,1750218675636,-490.0,0.00016931,2]
[366372376,1750218675646,-1236.67,0.00016931,2]
[366372377,1750218675656,-1598.55,0.00016931,2]
[366372378,1750218675666,-490.0,0.00016931,2]
[366372379,1750218675675,-490.0,0.00016931,2]
[366372380,1750218675684,-490.0,0.00016931,2]
[366372381,1750218675694,-490.0,0.00016931,2]
[366372382,1750218675707,-1741.66,0.00016931,2]
[366372383,1750218675717,-490.0,0.00016931,2]
[366372384,1750218675727,-490.0,0.00016931,2]
[366372385,1750218675737,-553.54,0.00016931,2]
[366372386,1750218675748,-471.84794786,0.00016931,2]
[366372387,1750218675758,-2549.1,0.00016931,2]
[366372388,1750218675767,-864.75,0.00016931,2]
[366372389,1750218675777,-419.47429114,0.00016931,2]
[366372390,1750218675786,-490.0,0.00016931,2]
[366372391,1750218675796,-651.9,0.00016931,2]
[366372392,1750218675806,-490.0,0.00016931,2]
[366372393,1750218675815,-490.0,0.00016931,2]
[366372394,1750218675824,-910.58,0.00016931,2]
[366372395,1750218675956,-1519.52,0.00016931,2]
[366372396,1750218675966,-490.0,0.00016931,2]
[366372397,1750218675976,-490.0,0.00016931,2]
[366372398,1750218675985,-490.0,0.00016931,2]
[366372399,1750218675995,-490.0,0.00016931,2]
[366372400,1750218676005,-490.0,0.00016931,2]
[366372401,1750218676015,-618.46,0.00016931,2]
[366372402,1750218676026,-490.0,0.00016931,2]
[366372403,1750218676035,-716.05,0.00016931,2]
[366372404,1750218676045,-2097.15,0.00016931,2]
[366372405,1750218676055,-490.0,0.00016931,2]
[366372406,1750218676065,-522.82,0.00016931,2]
[366372407,1750218676075,-490.0,0.00016931,2]
[366372408,1750218676084,-490.0,0.00016931,2]
[366372409,1750218676095,-490.0,0.00016931,2]
[366372410,1750218676105,-490.0,0.00016931,2]
[366372411,1750218676115,-490.0,0.00016931,2]
[366372412,1750218676124,-490.0,0.00016931,2]
[366372413,1750218676134,-1314.5,0.00016931,2]
[366372414,1750218676145,-490.0,0.00016931,2]
[366372415,1750218676155,-1833.33,0.00016931,2]
[366372416,1750218676166,-519.25,0.00016931,2]
[366372417,1750218676176,-606.79,0.00016931,2]
[366372418,1750218676186,-490.0,0.00016931,2]
[366372419,1750218676195,-540.89,0.00016931,2]
[366372420,1750218676205,-742.35,0.00016931,2]
[366372421,1750218676215,-151.0,0.00016931,2]
[366372422,1750218676225,-151.0,0.00016931,2]
[366372423,1750218676235,-151.0,0.00016931,2]
[366372424,1750218676245,-863.58,0.00016931,2]
[366372425,1750218676254,-490.0,0.00016931,2]
[366372426,1750218676264,-490.0,0.00016931,2]
[366372427,1750218676273,-1918.62,0.00016931,2]
[366372428,1750218676283,-490.0,0.00016931,2]
[366372429,1750218676293,-1204.05,0.00016931,2]
[366372430,1750218676303,-298.07663356,0.00016931,2]
[366372431,1750218676313,-1614.79,0.00016931,2]
[366372432,1750218676322,-1738.0,0.00016931,2]
[366372433,1750218676332,-616.22,0.00016931,2]
[366372434,1750218676343,-344.27451791,0.00016931,2]
[366372435,1750218676353,-892.26,0.00016931,2]
[366372436,1750218676363,-490.0,0.00016931,2]
[366372437,1750218676372,-490.0,0.00016931,2]
[366372438,1750218676382,-2202.81,0.00016931,2]
[366372439,1750218676392,-490.0,0.00016931,2]
[366372440,1750218676402,-490.0,0.00016931,2]
[366372441,1750218676411,-766.33,0.00016931,2]
[366372442,1750218676421,-461.39569436,0.00016931,2]
[366372443,1750218676431,-630.08,0.00016931,2]
[366372444,1750218676440,-620.41,0.00016931,2]
[366372445,1750218676450,-490.0,0.00016931,2]
[366372446,1750218676459,-490.0,0.00016931,2]
[366372447,1750218676469,-490.0,0.00016931,2]
[366372448,1750218676478,-555.62,0.00016931,2]
[366372449,1750218676487,-1168.39,0.00016931,2]
[366372450,1750218676497,-660.0,0.00016931,2]
[366372451,1750218676508,-490.0,0.00016931,2]
[366372452,1750218676517,-490.0,0.00016931,2]
[366372453,1750218676527,-490.0,0.00016931,2]
[366372454,1750218676537,-347.05,0.00016931,2]
[366372455,1750218676546,-798.39,0.00016931,2]
[366372456,1750218676556,-789.28,0.00016931,2]
[366372457,1750218676566,-490.0,0.00016931,2]
[366372458,1750218676575,-1097.8,0.00016931,2]
[366372459,1750218676585,-490.0,0.00016931,2]
[366372460,1750218676594,-490.0,0.00016931,2]
[366372461,1750218676604,-812.45,0.00016931,2]
[366372462,1750218676613,-1360.49,0.00016931,2]
[366372463,1750218676623,-490.0,0.00016931,2]
[366372464,1750218676632,-1499.29,0.00016931,2]
[366372465,1750218676642,-490.0,0.00016931,2]
[366372466,1750218676651,-1083.86,0.00016931,2]
[366372467,1750218676661,-490.0,0.00016931,2]
[366372468,1750218676670,-4696.22,0.00016931,2]
[366372469,1750218676680,-743.09,0.00016931,2]
[366372470,1750218676689,-408.63394577,0.00016931,2]
[366372471,1750218676698,-537.25,0.00016931,2]
[366372472,1750218676708,-490.0,0.00016931,2]
[366372473,1750218676717,-168.94813496,0.00016931,2]
[366372474,1750218676727,-490.0,0.00016931,2]
[366372475,1750218676736,-536.62,0.00016931,2]
[366372476,1750218676745,-992.05,0.00016931,2]
[366372477,1750218676755,-19589.19,0.00016931,2]
[366372478,1750218676765,-693.17,0.00016931,2]
[366372479,1750218676774,-490.0,0.00016931,2]
[366372480,1750218676783,-490.0,0.00016931,2]
[366372481,1750218676793,-2306.99,0.00016931,2]
[366372482,1750218676802,-490.0,0.00016931,2]
[366372483,1750218676813,-490.0,0.00016931,2]
[366372484,1750218676823,-955.59,0.00016931,2]
[366372485,1750218676833,-1022.22,0.00016931,2]
[366372486,1750218676843,-547.19,0.00016931,2]
[366372487,1750218676852,-1095.24,0.00016931,2]
[366372488,1750218676862,-490.0,0.00016931,2]
[366372489,1750218676871,-2353.3,0.00016931,2]
[366372490,1750218676881,-490.0,0.00016931,2]
[366372491,1750218676891,-8446.41,0.00016931,2]
[366372492,1750218676900,-300.0,0.00016931,2]
[366372493,1750218676909,-490.0,0.00016931,2]
[366372494,1750218676919,-1430.64,0.00016931,2]
[366372495,1750218676928,-2435.63,0.00016931,2]
[366372496,1750218676937,-1338.11,0.00016931,2]
[366372497,1750218676946,-537.19,0.00016931,2]
[366372498,1750218676955,-2850.53,0.00016931,2]
[366372499,1750218676965,-1282.7,0.00016931,2]
[366372500,1750218676974,-490.0,0.00016931,2]
[366372501,1750218676984,-1665.93,0.00016931,2]
[366372502,1750218676993,-490.0,0.00016931,2]
[366372503,1750218677001,-490.0,0.00016931,2]
[366372504,1750218677009,-490.0,0.00016931,2]
[366372505,1750218677018,-1100.52,0.00016931,2]
[366372506,1750218677026,-490.0,0.00016931,2]
[366372507,1750218677034,-6439.01,0.00016931,2]
[366372508,1750218677042,-490.0,0.00016931,2]
[366372509,1750218677052,-490.0,0.00016931,2]
[366372510,1750218677061,-1254.54,0.00016931,2]
[366372511,1750218677071,-678.26,0.00016931,2]
[366372512,1750218677081,-1875.44,0.00016931,2]
[366372513,1750218677093,-7105.08,0.00016931,2]
[366372514,1750218677102,-1199.99,0.00016931,2]
[366372515,1750218677111,-490.0,0.00016931,2]
[366372516,1750218677121,-490.0,0.00016931,2]
[366372517,1750218677131,-1429.29,0.00016931,2]
[366372518,1750218677143,-1211.77,0.00016931,2]
[366372519,1750218677152,-1795.98,0.00016931,2]
[366372520,1750218677162,-735.49,0.00016931,2]
[366372521,1750218677171,-490.0,0.00016931,2]
[366372522,1750218677181,-1796.16,0.00016931,2]
[366372523,1750218677190,-4716.11,0.00016931,2]
[366372524,1750218677200,-940.66,0.00016931,2]
[366372525,1750218677210,-490.0,0.00016931,2]
[366372526,1750218677222,-490.0,0.00016931,2]
[366372527,1750218677232,-1719.73,0.00016931,2]
[366372528,1750218677241,-15409.62,0.00016931,2]
[366372529,1750218677251,-809.73,0.00016931,2]
[366372530,1750218677261,-490.0,0.00016931,2]
[366372531,1750218677270,-185.76293685,0.00016931,2]
[366372532,1750218677279,-490.0,0.00016931,2]
[366372533,1750218677289,-490.0,0.00016931,2]
[366372534,1750218677299,-3648.97,0.00016931,2]
[366372535,1750218677308,-8306.29,0.00016931,2]
[366372536,1750218677318,-490.0,0.00016931,2]
[366372537,1750218677328,-4891.01,0.00016931,2]
[366372538,1750218677338,-397.95112098,0.00016931,2]
[366372539,1750218677348,-490.0,0.00016931,2]
[366372540,1750218677358,-2166.48,0.00016931,2]
[366372541,1750218677368,-490.0,0.00016931,2]
[366372542,1750218677378,-490.0,0.00016931,2]
[366372543,1750218677387,-2671.46,0.00016931,2]
[366372544,1750218677397,-490.0,0.00016931,2]
[366372545,1750218677406,-753.14,0.00016931,2]
[366372546,1750218677416,-2495.09,0.00016931,2]
[366372547,1750218677426,-490.0,0.00016931,2]
[366372548,1750218677437,-3755.77,0.00016931,2]
[366372549,1750218677447,-454.8105435,0.00016931,2]
[366372550,1750218677458,-622.94,0.00016931,2]
[366372551,1750218677467,-490.0,0.00016931,2]
[366372552,1750218677477,-490.0,0.00016931,2]
[366372553,1750218677487,-953.29,0.00016931,2]
[366372554,1750218677497,-2886.38,0.00016931,2]
[366372555,1750218677506,-490.0,0.00016931,2]
[366372556,1750218677516,-574.11,0.00016931,2]
[366372557,1750218677525,-2203.13,0.00016931,2]
[366372558,1750218677536,-941.26,0.00016931,2]
[366372559,1750218677546,-497.58,0.00016931,2]
[366372560,1750218677556,-490.0,0.00016931,2]
[366372561,1750218677565,-490.0,0.00016931,2]
[366372562,1750218677575,-8180.45,0.00016931,2]
[366372563,1750218677585,-490.0,0.00016931,2]
[366372564,1750218677596,-490.0,0.00016931,2]
[366372565,1750218677606,-1319.81,0.00016931,2]
[366372566,1750218677617,-819.31,0.00016931,2]
[366372567,1750218677627,-490.0,0.00016931,2]
[366372568,1750218677636,-1665.72,0.00016931,2]
[366372569,1750218677647,-641.3,0.00016931,2]
[366372570,1750218677658,-1402.44,0.00016931,2]
[366372571,1750218677668,-490.0,0.00016931,2]
[366372572,1750218677678,-1241.61,0.00016931,2]
[366372573,1750218677688,-1720.64,0.00016931,2]
[366372574,1750218677698,-490.0,0.00016931,2]
[366372575,1750218677708,-490.0,0.00016931,2]
[366372576,1750218677718,-490.0,0.00016931,2]
[366372577,1750218677727,-772.7,0.00016931,2]
[366372578,1750218677738,-490.0,0.00016931,2]
[366372579,1750218677748,-1957.41,0.00016931,2]
[366372580,1750218677758,-562.32,0.00016931,2]
[366372581,1750218677768,-1163.59,0.00016931,2]
[366372582,1750218677778,-616.17,0.00016931,2]
[366372583,1750218677788,-490.0,0.00016931,2]
[366372584,1750218677798,-1925.55,0.00016931,2]
[366372585,1750218677807,-1717.22,0.00016931,2]
[366372586,1750218677817,-196.124279,0.00016931,2]
[366372587,1750218677827,-490.0,0.00016931,2]
[366372588,1750218677837,-196.124279,0.00016931,2]
[366372589,1750218677847,-196.124279,0.00016931,2]
[366372590,1750218677856,-553.36,0.00016931,2]
[366372591,1750218677866,-1368.54,0.00016931,2]
[366372592,1750218677876,-594.5,0.00016931,2]
[366372593,1750218677885,-490.0,0.00016931,2]
[366372594,1750218677895,-196.124279,0.00016931,2]
[366372595,1750218677905,-619.96,0.00016931,2]
[366372596,1750218677914,-196.124279,0.00016931,2]
[366372597,1750218677926,-1244.18,0.00016931,2]
[366372598,1750218677936,-196.124278,0.00016931,2]
[366372599,1750218677946,-6729.78,0.00016931,2]
[366372600,1750218677957,-13107.5,0.00016931,2]
[366372601,1750218677967,-1393.49,0.00016931,2]
[366372602,1750218677976,-490.0,0.00016931,2]
[366372603,1750218677986,-2904.88,0.00016931,2]
[366372604,1750218677996,-490.0,0.00016931,2]
[366372605,1750218678005,-717.91,0.00016931,2]
[366372606,1750218678015,-490.0,0.00016931,2]
[366372607,1750218678025,-490.0,0.00016931,2]
[366372608,1750218678035,-2072.0,0.00016931,2]
[366372609,1750218678044,-1291.1,0.00016931,2]
[366372610,1750218678054,-262.99744907,0.00016931,2]
[366372611,1750218678064,-490.0,0.00016931,2]
[366372612,1750218678074,-595.05,0.00016931,2]
[366372613,1750218678084,-490.0,0.00016931,2]
[366372614,1750218678095,-8448.49,0.00016931,2]
[366372615,1750218678105,-3528.98,0.00016931,2]
[366372616,1750218678115,-4659.49,0.00016931,2]
[366372617,1750218678125,-586.46,0.00016931,2]
[366372618,1750218678135,-490.0,0.00016931,2]
[366372619,1750218678149,-490.0,0.00016931,2]
[366372620,1750218678159,-490.0,0.00016931,2]
[366372621,1750218678168,-3480.04,0.00016931,2]
[366372622,1750218678178,-490.0,0.00016931,2]
[366372623,1750218678189,-490.0,0.00016931,2]
[366372624,1750218678498,-9441.23,0.00016931,2]
[366372625,1750218678521,-1865.9,0.00016931,2]
[366372626,1750218678531,-490.0,0.00016931,2]
[366372627,1750218678541,-2232.49,0.00016931,2]
[366372628,1750218678550,-905.7,0.00016931,2]
[366372629,1750218678560,-874.92,0.00016931,2]
[366372630,1750218678570,-490.0,0.00016931,2]
[366372631,1750218678580,-490.0,0.00016931,2]
[366372632,1750218678590,-490.0,0.00016931,2]
[366372633,1750218678600,-2325.39,0.00016931,2]
[366372634,1750218678610,-490.0,0.00016931,2]
[366372635,1750218678619,-1874.5,0.00016931,2]
[366372636,1750218678628,-2598.5,0.00016931,2]
[366372637,1750218678638,-490.0,0.00016931,2]
[366372638,1750218678648,-1052.83,0.00016931,2]
[366372639,1750218678658,-514.45,0.00016931,2]
[366372640,1750218678668,-490.0,0.00016931,2]
[366372641,1750218678678,-2718.62,0.00016931,2]
[366372642,1750218678687,-490.0,0.00016931,2]
[366372643,1750218678696,-1816.39,0.00016931,2]
[366372644,1750218678706,-1134.12,0.00016931,2]
[366372645,1750218678716,-1770.57,0.00016931,2]
[366372646,1750218678726,-2069.76,0.00016931,2]
[366372647,1750218678736,-490.0,0.00016931,2]
[366372648,1750218678745,-1735.59,0.00016931,2]
[366372649,1750218678755,-602.23145944,0.00016931,2]